bitfinex-derivatives/quotes_BTCF0:USTF0_20250929
["timestamp","ask_amount","ask_price","bid_price","bid_amount"]
[1759137095847,0.61004139,112250.0,112240.0,0.48778678]
[1759137096052,1.42048139,112250.0,112240.0,0.48778678]
[1759137098455,1.42048139,112250.0,112240.0,0.39871838]
[1759137102759,1.45254143,112250.0,112240.0,0.39871838]
[1759137112377,1.42048139,112250.0,112240.0,0.39871838]
[1759137112673,1.42048139,112250.0,112240.0,0.44673731]
[1759137114575,1.42020139,112250.0,112240.0,0.44673731]
[1759137115074,0.61004139,112250.0,112240.0,0.44673731]
[1759137115270,1.42016139,112250.0,112240.0,0.44673731]
[1759137116776,0.35260978,112250.0,112240.0,0.44673731]
[1759137116981,1.42016139,112250.0,112240.0,0.44673731]
[1759137118382,0.60990871,112250.0,112240.0,0.44673731]
[1759137118580,1.41998871,112250.0,112240.0,0.44673731]
[1759137120590,1.67728764,112250.0,112240.0,0.44673731]
[1759137120885,0.86720764,112250.0,112240.0,0.03997838]
[1759137121090,1.70930768,112250.0,112240.0,0.03997838]
[1759137121276,1.70930768,112250.0,112240.0,0.01685838]
[1759137121277,2.07724764,112250.0,112240.0,0.01685838]
[1759137121476,0.249669,112240.0,112230.0,0.40747714]
[1759137121684,0.098777,112230.0,112220.0,0.42174893]
[1759137121986,0.63388542,112230.0,112220.0,0.44486893]
[1759137122381,1.44392542,112230.0,112220.0,0.44486893]
[1759137123384,1.44292542,112230.0,112220.0,0.44486893]
[1759137124183,1.44392542,112230.0,112220.0,0.44986893]
[1759137125186,1.44392542,112230.0,112220.0,0.45086893]
[1759137125685,0.63388542,112230.0,112220.0,0.45086893]
[1759137125885,1.44392542,112230.0,112220.0,0.45086893]
[1759137126283,1.42341486,112230.0,112220.0,0.45086893]
[1759137127183,0.61337486,112230.0,112220.0,0.45086893]
[1759137127483,1.42337486,112230.0,112220.0,0.45086893]
[1759137128385,0.76147486,112230.0,112220.0,0.45086893]
[1759137128581,1.59199626,112230.0,112220.0,0.45086893]
[1759137129385,1.57147486,112230.0,112220.0,0.40285]
[1759137129789,1.59199457,112230.0,112220.0,0.40285]
[1759137130086,0.78199457,112230.0,112220.0,0.40285]
[1759137130289,1.59199457,112230.0,112220.0,0.40285]
[1759137131788,0.78199457,112230.0,112220.0,0.40285]
[1759137131991,1.59195457,112230.0,112220.0,0.40285]
[1759137132688,1.57143486,112230.0,112220.0,0.45086893]
[1759137135591,0.76147486,112230.0,112220.0,0.45086893]
[1759137135790,1.57139486,112230.0,112220.0,0.45086893]
[1759137137692,0.76147486,112230.0,112220.0,0.45086893]
[1759137137893,1.57139486,112230.0,112220.0,0.45086893]
[1759137138684,0.76147486,112230.0,112220.0,0.45086893]
[1759137139388,1.57135486,112230.0,112220.0,0.45086893]
[1759137139595,1.59189098,112230.0,112220.0,0.3668]
[1759137146284,1.95269098,112230.0,112220.0,0.006]
[1759137146486,1.95265098,112230.0,112220.0,0.006]
[1759137146691,1.14281098,112230.0,112220.0,0.006]
[1759137146886,1.43805312,112230.0,112220.0,0.04244]
[1759137147197,1.95265098,112230.0,112220.0,0.04244]
[1759137147400,1.14281098,112230.0,112220.0,0.04244]
[1759137147696,1.95265098,112230.0,112220.0,0.04244]
[1759137151895,1.95261098,112230.0,112220.0,0.04244]
[1759137154703,1.14281098,112230.0,112220.0,0.04244]
[1759137154900,1.95257098,112230.0,112220.0,0.04244]
[1759137155303,1.98463102,112230.0,112220.0,0.04244]
[1759137156903,1.95257098,112230.0,112220.0,0.04244]
[1759137164007,1.95249098,112230.0,112220.0,0.04244]
[1759137168312,1.95241098,112230.0,112220.0,0.04244]
[1759137170417,1.95241098,112230.0,112220.0,0.006]
[1759137170614,1.14281098,112230.0,112220.0,0.006]
[1759137170814,1.95237098,112230.0,112220.0,0.006]
[1759137171015,1.95237098,112230.0,112220.0,0.02859]
[1759137172313,1.95237098,112230.0,112220.0,0.006]
[1759137180323,1.95265378,112230.0,112220.0,0.006]
[1759137184723,1.59185378,112230.0,112220.0,0.006]
[1759137184923,1.95265378,112230.0,112220.0,0.006]
[1759137186623,1.14309378,112230.0,112220.0,0.006]
[1759137186819,1.95249378,112230.0,112220.0,0.006]
[1759137187530,1.95245378,112230.0,112220.0,0.006]
[1759137190730,2.38451382,112230.0,112220.0,0.006]
[1759137191622,0.0987925,112210.0,112200.0,0.42222893]
[1759137191826,1.35519538,112210.0,112200.0,0.40881893]
[1759137192226,1.35519538,112210.0,112200.0,0.3608]
[1759137192431,0.0988003,112200.0,112190.0,0.44491893]
[1759137192633,0.78231708,112200.0,112190.0,0.44491893]
[1759137192924,0.77431708,112200.0,112190.0,0.44491893]
[1759137193630,0.76231708,112200.0,112190.0,0.44491893]
[1759137194136,0.77118042,112200.0,112190.0,0.3969]
[1759137194537,0.77418042,112200.0,112190.0,0.4149]
[1759137194735,0.84801401,112200.0,112190.0,0.4209]
[1759137195942,1.65729401,112200.0,112190.0,0.4209]
[1759137197943,0.84801401,112200.0,112190.0,0.4209]
[1759137198144,1.65729401,112200.0,112190.0,0.4209]
[1759137198340,1.65729401,112200.0,112190.0,0.39831]
[1759137198536,1.66009401,112200.0,112190.0,0.3849]
[1759137198734,0.85081401,112200.0,112190.0,0.3849]
[1759137198933,1.66009401,112200.0,112190.0,0.3849]
[1759137200344,1.66009401,112200.0,112190.0,0.0241]
[1759137200345,2.04168189,112200.0,112190.0,0.0241]
[1759137201945,2.03768189,112200.0,112190.0,0.0001]
[1759137206551,2.03772189,112200.0,112190.0,0.0001]
[1759137207252,1.22840189,112200.0,112190.0,0.0001]
[1759137207550,2.03772189,112200.0,112190.0,0.0001]
[1759137209247,2.43772189,112200.0,112190.0,0.0001]
[1759137209456,0.61368886,112190.0,112180.0,0.3608]
[1759137209755,0.37678465,112190.0,112180.0,0.3608]
[1759137210752,0.39978465,112190.0,112180.0,0.3668]
[1759137211151,1.16612498,112190.0,112180.0,0.006]
[1759137211647,0.0891162,112180.0,112170.0,0.3608]
[1759137211851,0.0892321,112160.0,112150.0,0.01389]
[1759137212048,1.15599243,112160.0,112150.0,0.01389]
[1759137212246,0.08924,112150.0,112140.0,0.39754435]
[1759137212446,0.34668033,112150.0,112140.0,0.39754435]
[1759137212650,1.41344066,112150.0,112140.0,0.39754435]
[1759137212861,1.41344066,112150.0,112140.0,0.00010435]
[1759137213054,1.9428553,112150.0,112140.0,0.00010435]
[1759137213358,0.0891639,112120.0,112110.0,0.44545893]
[1759137213552,0.34660423,112120.0,112110.0,0.03664]
[1759137213753,1.03956423,112120.0,112110.0,0.03664]
[1759137214057,0.60404456,112120.0,112110.0,0.03664]
[1759137214358,1.15603392,112120.0,112110.0,0.03664]
[1759137214559,1.15398659,112120.0,112110.0,0.03664]
[1759137214754,1.15198659,112120.0,112110.0,0.03664]
[1759137214955,0.41456081,112120.0,112110.0,0.03664]
[1759137215256,1.58472081,112120.0,112110.0,0.03664]
[1759137215559,0.78936081,112120.0,112110.0,0.04064]
[1759137215855,1.59872081,112120.0,112110.0,0.04064]
[1759137216257,1.61172081,112120.0,112110.0,0.04364]
[1759137216453,0.80236081,112120.0,112110.0,0.04364]
[1759137216655,1.61176081,112120.0,112110.0,0.04364]
[1759137217755,1.61180081,112120.0,112110.0,0.04364]
[1759137218152,1.25100081,112120.0,112110.0,0.80444]
[1759137218347,0.027,112120.0,112110.0,1.42686837]
[1759137218548,0.0891373,112160.0,112140.0,0.103038]
[1759137218758,0.92048,112150.0,112140.0,0.74402833]
[1759137219053,1.17792033,112150.0,112140.0,0.486588]
[1759137219356,1.17792033,112150.0,112140.0,0.886588]
[1759137219557,0.36848033,112150.0,112140.0,0.486588]
[1759137219765,0.27934033,112150.0,112140.0,0.886588]
[1759137220052,1.08882033,112150.0,112140.0,0.886588]
[1759137220255,1.17796033,112150.0,112140.0,0.886588]
[1759137220557,1.17796033,112150.0,112140.0,0.486588]
[1759137221058,0.36848033,112150.0,112140.0,0.490588]
[1759137221258,1.18696033,112150.0,112140.0,0.492588]
[1759137222159,0.37748033,112150.0,112140.0,0.492588]
[1759137222361,1.18696033,112150.0,112140.0,0.492588]
[1759137222956,1.17796033,112150.0,112140.0,0.486588]
[1759137223455,0.36848033,112150.0,112140.0,0.486588]
[1759137223655,1.17796033,112150.0,112140.0,0.486588]
[1759137224264,0.80948,112150.0,112140.0,0.486588]
[1759137224656,1.17796053,112150.0,112140.0,0.486588]
[1759137226662,0.9205202,112150.0,112140.0,0.486588]
[1759137226861,1.17796053,112150.0,112140.0,0.486588]
[1759137229864,0.36848053,112150.0,112140.0,0.486588]
[1759137230060,1.17792053,112150.0,112140.0,0.486588]
[1759137237567,0.27934033,112150.0,112140.0,0.486588]
[1759137237769,1.08878033,112150.0,112140.0,0.486588]
[1759137237971,1.17792033,112150.0,112140.0,0.486588]
[1759137238962,1.06688033,112150.0,112140.0,0.486588]
[1759137239158,1.08791033,112150.0,112140.0,0.486588]
[1759137241172,1.17705033,112150.0,112140.0,0.486588]
[1759137241559,0.83047,112150.0,112140.0,0.486588]
[1759137241759,1.08791033,112150.0,112140.0,0.486588]
[1759137242371,1.0881926,112150.0,112140.0,0.486588]
[1759137244972,1.4350552,112150.0,112140.0,0.486588]
[1759137245168,1.45569275,112150.0,112140.0,0.486588]
[1759137246071,1.45569275,112150.0,112140.0,0.03664]
[1759137246280,2.21649275,112150.0,112140.0,0.02275]
[1759137246663,2.21649275,112150.0,112140.0,0.089148]
[1759137248474,0.110178,112140.0,112130.0,0.4866702]
[1759137248674,0.64626075,112140.0,112130.0,0.4866702]
[1759137249268,1.45566075,112140.0,112130.0,0.4866702]
[1759137249777,1.46766075,112140.0,112130.0,0.4896702]
[1759137250776,1.45566075,112140.0,112130.0,0.4866702]
[1759137250975,1.46166075,112140.0,112130.0,0.4886702]
[1759137251175,1.47068075,112140.0,112130.0,0.4519502]
[1759137251879,1.47068075,112140.0,112130.0,0.4747802]
[1759137252067,1.47068075,112140.0,112130.0,0.3628]
[1759137252674,1.47068075,112140.0,112130.0,0.02483]
[1759137253578,1.72840335,112140.0,112130.0,0.002]
[1759137253780,2.48920335,112140.0,112130.0,0.002]
[1759137254180,2.63730335,112140.0,112130.0,0.002]
[1759137254380,0.1172234,112120.0,112110.0,0.01837591]
[1759137254678,0.1172234,112120.0,112110.0,0.04061591]
[1759137254679,1.46274615,112120.0,112110.0,0.04061591]
[1759137255076,1.46274615,112120.0,112110.0,0.02224]
[1759137255682,1.82654615,112120.0,112110.0,0.02624]
[1759137256082,1.89734901,112120.0,112110.0,0.02624]
[1759137256282,1.89734901,112120.0,112110.0,0.004]
[1759137256977,0.1102116,112110.0,112100.0,0.4849982]
[1759137257182,0.3659342,112110.0,112100.0,0.4849982]
[1759137257782,0.3746851,112110.0,112100.0,0.4849982]
[1759137258178,0.1169625,112110.0,112100.0,0.4849982]
[1759137258385,1.1841251,112110.0,112100.0,0.4849982]
[1759137259386,1.1871251,112110.0,112100.0,0.4939982]
[1759137259884,1.1861251,112110.0,112100.0,0.4899982]
[1759137262785,0.3766851,112110.0,112100.0,0.4899982]
[1759137262985,1.1868051,112110.0,112100.0,0.4899982]
[1759137263282,0.3679342,112110.0,112100.0,0.4899982]
[1759137263490,1.1780942,112110.0,112100.0,0.4899982]
[1759137264693,1.1780542,112110.0,112100.0,0.4899982]
[1759137265183,1.1779742,112110.0,112100.0,0.4899982]
[1759137265879,1.18673719,112110.0,112100.0,0.4899982]
[1759137266696,0.37669719,112110.0,112100.0,0.4899982]
[1759137266991,1.18673719,112110.0,112100.0,0.4899982]
[1759137267291,1.18665719,112110.0,112100.0,0.4899982]
[1759137272384,1.18633719,112110.0,112100.0,0.4899982]
[1759137272589,0.92861459,112110.0,112100.0,0.4899982]
[1759137272894,1.0904026,112110.0,112100.0,0.79573973]
[1759137273195,0.2807626,112110.0,112100.0,0.79573973]
[1759137273396,1.0904026,112110.0,112100.0,0.79573973]
[1759137273890,0.2807626,112110.0,112100.0,0.79573973]
[1759137274095,0.81168,112110.0,112100.0,1.19573973]
[1759137274295,1.0694026,112110.0,112100.0,1.19573973]
[1759137274892,0.002,112110.0,112100.0,1.45346233]
[1759137275296,0.81168,112110.0,112100.0,1.45346233]
[1759137275492,0.002,112110.0,112100.0,1.45346233]
[1759137276198,0.002,112110.0,112100.0,1.4054434]
[1759137278207,0.2597226,112110.0,112100.0,1.4054434]
[1759137278404,0.002,112110.0,112100.0,1.4054434]
[1759137279006,0.002,112110.0,112100.0,0.8899982]
[1759137279307,0.2597226,112110.0,112100.0,1.4054434]
[1759137279508,0.002,112110.0,112100.0,1.0054434]
[1759137280905,0.002,112110.0,112100.0,1.8150434]
[1759137281106,0.002,112110.0,112100.0,1.0054434]
[1759137281305,0.002,112110.0,112100.0,1.87916348]
[1759137282312,0.30243642,112110.0,112100.0,0.7477208]
[1759137282502,0.30243642,112110.0,112100.0,1.86317349]
[1759137282706,0.30243642,112110.0,112100.0,1.60545089]
[1759137283209,0.30243642,112110.0,112100.0,1.19585089]
[1759137283404,0.04471382,112110.0,112100.0,1.19585089]
[1759137283610,0.30243642,112110.0,112100.0,1.19585089]
[1759137284612,0.39160772,112110.0,112100.0,0.53812829]
[1759137284807,0.39160772,112110.0,112100.0,0.53812939]
[1759137285009,0.79160772,112110.0,112100.0,0.44895009]
[1759137285410,1.04933032,112110.0,112100.0,0.44895009]
[1759137285607,1.04933032,112110.0,112100.0,0.08815009]
[1759137285808,0.79160772,112110.0,112100.0,0.08815009]
[1759137286812,0.79160772,112110.0,112100.0,0.17732939]
[1759137287908,1.04933032,112110.0,112100.0,0.17732939]
[1759137291319,1.04933032,112110.0,112100.0,0.08815009]
[1759137291915,1.85929032,112110.0,112100.0,0.08815009]
[1759137293718,1.85925032,112110.0,112100.0,0.08815009]
[1759137294218,1.85909032,112110.0,112100.0,0.08815009]
[1759137294811,1.04933032,112110.0,112100.0,0.08815009]
[1759137295017,1.85905032,112110.0,112100.0,0.08815009]
[1759137295722,1.45905032,112110.0,112100.0,0.08815009]
[1759137296623,1.45903203,112110.0,112100.0,0.08815009]
[1759137298722,0.64931203,112110.0,112100.0,0.08815009]
[1759137298922,1.45895203,112110.0,112100.0,0.08815009]
[1759137300327,1.86797203,112110.0,112100.0,0.05313009]
[1759137300525,2.22877203,112110.0,112100.0,0.005]
[1759137301529,1.41913203,112110.0,112100.0,0.005]
[1759137301829,2.22881203,112110.0,112100.0,0.005]
[1759137303631,1.41913203,112110.0,112100.0,0.005]
[1759137303927,2.22881203,112110.0,112100.0,0.005]
[1759137304228,2.22933987,112110.0,112100.0,0.005]
[1759137307330,2.37743987,112110.0,112100.0,0.005]
[1759137307727,2.37763987,112110.0,112100.0,0.005]
[1759137308025,1.04276683,112110.0,112100.0,0.02778]
[1759137308227,0.90075335,112110.0,112100.0,0.04064]
[1759137308423,1.71091335,112110.0,112100.0,0.04064]
[1759137308622,1.41063987,112110.0,112100.0,0.04064]
[1759137308825,2.22167987,112110.0,112100.0,0.04064]
[1759137309229,1.41063987,112110.0,112100.0,0.1298194]
[1759137309428,2.22167987,112110.0,112100.0,0.1298194]
[1759137309926,1.96369335,112110.0,112100.0,0.1298194]
[1759137310735,1.96385335,112110.0,112100.0,0.1298194]
[1759137311031,1.47456205,112110.0,112100.0,0.1298194]
[1759137311429,0.66348205,112110.0,112100.0,0.1298194]
[1759137311634,1.56373345,112110.0,112100.0,0.1298194]
[1759137311934,1.47456205,112110.0,112100.0,0.1298194]
[1759137312333,0.66348205,112110.0,112100.0,0.1298194]
[1759137312538,1.11372205,112110.0,112100.0,0.1298194]
[1759137313037,1.09301652,112110.0,112100.0,0.1298194]
[1759137313238,1.09301652,112110.0,112100.0,0.17794949]
[1759137314238,0.37114792,112110.0,112100.0,0.17794949]
[1759137314537,1.2027602,112110.0,112100.0,0.1298194]
[1759137316638,1.46074672,112110.0,112100.0,0.0941794]
[1759137316835,1.82154672,112110.0,112100.0,0.005]
[1759137317632,2.36964672,112110.0,112100.0,0.005]
[1759137320544,2.34895444,112110.0,112100.0,0.005]
[1759137320843,2.36975009,112110.0,112100.0,0.005]
[1759137324142,2.36975009,112110.0,112100.0,0.00496]
[1759137325236,0.1096074,112090.0,112080.0,0.17262539]
[1759137325442,1.18023392,112090.0,112080.0,0.17262539]
[1759137326744,1.17623392,112090.0,112080.0,0.17262539]
[1759137327045,1.17823392,112090.0,112080.0,0.17862539]
[1759137327445,1.18223392,112090.0,112080.0,0.19262539]
[1759137330047,1.18223392,112090.0,112080.0,0.10343009]
[1759137330547,1.19125392,112090.0,112080.0,0.10343009]
[1759137330740,1.19105392,112090.0,112080.0,0.10343009]
[1759137330940,1.19105392,112090.0,112080.0,0.19262519]
[1759137332143,1.19105392,112090.0,112080.0,0.09064009]
[1759137332347,1.19125392,112090.0,112080.0,0.09064009]
[1759137332545,1.21205983,112090.0,112080.0,0.06813009]
[1759137332745,1.23302716,112090.0,112080.0,0.06813009]
[1759137333050,1.23298716,112090.0,112080.0,0.06813009]
[1759137333248,0.42038716,112090.0,112080.0,0.06813009]
[1759137333449,1.23298716,112090.0,112080.0,0.06813009]
[1759137335151,1.23298716,112090.0,112080.0,0.09064009]
[1759137335554,1.23298716,112090.0,112080.0,0.06813009]
[1759137335742,1.59378716,112090.0,112080.0,0.02]
[1759137336146,1.85177368,112090.0,112080.0,0.02]
[1759137336852,0.0973131,112070.0,112060.0,0.51084039]
[1759137337047,1.16801962,112070.0,112060.0,0.06083009]
[1759137337259,1.97073877,112070.0,112050.0,0.15015762]
[1759137337548,0.26609652,112060.0,112050.0,0.17266762]
[1759137337746,0.00811,112060.0,112050.0,0.17266762]
[1759137338049,1.09973743,112060.0,112050.0,0.12453753]
[1759137338254,0.08685717,112070.0,112060.0,0.124781]
[1759137338453,1.17847129,112070.0,112060.0,0.485581]
[1759137338947,0.92048477,112070.0,112060.0,0.485581]
[1759137339140,1.17847129,112070.0,112060.0,0.485461]
[1759137339345,1.18447129,112070.0,112060.0,0.485461]
[1759137339842,0.08797407,112070.0,112060.0,0.891461]
[1759137340045,0.90038407,112070.0,112060.0,0.93959109]
[1759137340348,0.90849407,112070.0,112060.0,0.93959109]
[1759137340644,0.90374407,112070.0,112060.0,0.53959109]
[1759137340843,0.09286407,112070.0,112060.0,1.19557761]
[1759137341050,0.90962407,112070.0,112060.0,0.93759109]
[1759137341857,0.91773407,112070.0,112060.0,0.53759109]
[1759137342356,0.10097407,112070.0,112060.0,0.53759109]
[1759137342655,0.91789407,112070.0,112060.0,0.53759109]
[1759137343554,0.10097407,112070.0,112060.0,0.53759109]
[1759137343854,0.91789407,112070.0,112060.0,0.53759109]
[1759137344052,0.023,112070.0,112060.0,0.79557761]
[1759137344261,0.458095,112100.0,112090.0,0.1247572]
[1759137344459,0.93421672,112100.0,112090.0,0.1247572]
[1759137345051,0.64767172,112100.0,112090.0,0.1247572]
[1759137345257,1.46495172,112100.0,112090.0,0.1247572]
[1759137346365,1.46595172,112100.0,112090.0,0.1287572]
[1759137347364,1.46495172,112100.0,112090.0,0.1247572]
[1759137347560,1.48195172,112100.0,112090.0,0.1297572]
[1759137347965,1.49101331,112100.0,112090.0,0.1297572]
[1759137348455,1.56080146,112100.0,112090.0,0.1297572]
[1759137353569,1.64998066,112100.0,112090.0,0.1297572]
[1759137355571,1.64998066,112100.0,112090.0,0.04057]
[1759137356363,2.04998066,112100.0,112090.0,0.01806]
[1759137356670,2.04998066,112100.0,112090.0,0.005]
[1759137358074,1.23270066,112100.0,112090.0,0.005]
[1759137358276,2.04906066,112100.0,112090.0,0.005]
[1759137358675,1.23270066,112100.0,112090.0,0.005]
[1759137358875,2.04898066,112100.0,112090.0,0.005]
[1759137359175,1.23270066,112100.0,112090.0,0.005]
[1759137359372,2.04894066,112100.0,112090.0,0.005]
[1759137360078,1.23270066,112100.0,112090.0,0.005]
[1759137360576,2.04892472,112100.0,112090.0,0.005]
[1759137360766,1.7909382,112100.0,112090.0,0.005]
[1759137360968,2.04892472,112100.0,112090.0,0.005]
[1759137361166,2.04884472,112100.0,112090.0,0.005]
[1759137361878,2.04880472,112100.0,112090.0,0.005]
[1759137362276,2.04880472,112100.0,112090.0,0.04014]
[1759137362472,2.04872472,112100.0,112090.0,0.04014]
[1759137363178,2.04884472,112100.0,112090.0,0.04014]
[1759137364176,1.23280472,112100.0,112090.0,0.04014]
[1759137364476,2.04876472,112100.0,112090.0,0.04014]
[1759137366278,2.30679818,112100.0,112090.0,0.04014]
[1759137372771,2.33885822,112100.0,112090.0,0.04014]
[1759137374682,2.38694828,112100.0,112090.0,0.01889]
[1759137374871,2.33885822,112100.0,112090.0,0.01889]
[1759137375072,2.33885822,112100.0,112090.0,0.04049]
[1759137375780,2.33885822,112100.0,112090.0,0.005]
[1759137375980,2.33885822,112100.0,112090.0,0.04045]
[1759137376583,2.59686821,112100.0,112090.0,0.005]
[1759137376781,2.19686821,112100.0,112090.0,0.005]
[1759137377184,2.24495827,112100.0,112090.0,0.005]
[1759137379586,2.19686821,112100.0,112090.0,0.005]
[1759137379786,2.24495827,112100.0,112090.0,0.005]
[1759137380087,2.56480817,112100.0,112090.0,0.005]
[1759137380287,2.61229827,112100.0,112090.0,0.005]
[1759137381088,2.56412817,112100.0,112090.0,0.005]
[1759137381388,0.0893052,112080.0,112070.0,0.01306]
[1759137381586,1.80228444,112080.0,112070.0,0.01306]
[1759137381983,0.98700444,112080.0,112070.0,0.01306]
[1759137382184,1.80212444,112080.0,112070.0,0.01306]
[1759137382383,1.80212444,112080.0,112070.0,0.035]
[1759137382583,1.80612444,112080.0,112070.0,0.041]
[1759137382882,1.81012444,112080.0,112070.0,0.041]
[1759137383084,1.81012444,112080.0,112070.0,0.08913009]
[1759137383677,0.99500444,112080.0,112070.0,0.08913009]
[1759137383877,1.80996444,112080.0,112070.0,0.17833289]
[1759137384078,0.99500444,112080.0,112070.0,0.17817289]
[1759137384284,0.47898446,112080.0,112070.0,0.17817289]
[1759137384478,1.80996444,112080.0,112070.0,0.17817289]
[1759137384879,1.72076924,112080.0,112070.0,0.17817289]
[1759137385085,0.64779925,112080.0,112070.0,0.43618288]
[1759137385285,0.26611999,112080.0,112070.0,1.19698288]
[1759137385486,1.08119999,112080.0,112070.0,1.19698288]
[1759137385692,0.52412998,112080.0,112070.0,1.19698288]
[1759137385893,0.823,112080.0,112070.0,1.19698288]
[1759137386196,1.08100999,112080.0,112070.0,1.19698288]
[1759137386689,1.17020479,112080.0,112070.0,1.19698288]
[1759137386988,0.26600999,112080.0,112070.0,1.19698288]
[1759137387189,1.08149999,112080.0,112070.0,0.93897289]
[1759137387390,1.08149999,112080.0,112070.0,1.19698288]
[1759137388093,1.17069489,112080.0,112070.0,1.19698288]
[1759137388393,0.26637999,112080.0,112070.0,1.19698288]
[1759137388688,1.08133999,112080.0,112070.0,1.19698288]
[1759137389089,0.82333,112080.0,112070.0,1.19698288]
[1759137389295,1.08133999,112080.0,112070.0,1.19698288]
[1759137391190,1.08133999,112080.0,112070.0,0.93897289]
[1759137391397,1.08109999,112080.0,112070.0,1.19698288]
[1759137391592,0.26637999,112080.0,112070.0,0.93897289]
[1759137391794,1.08105999,112080.0,112070.0,1.19698288]
[1759137392796,1.08105999,112080.0,112070.0,0.93897289]
[1759137393191,1.08097999,112080.0,112070.0,1.19698288]
[1759137393900,0.008,112080.0,112070.0,1.19698288]
[1759137394200,0.82248,112080.0,112070.0,0.8908428]
[1759137394398,0.82248,112080.0,112070.0,1.14885279]
[1759137394597,1.08048999,112080.0,112070.0,1.14885279]
[1759137399600,1.08085999,112080.0,112070.0,0.74885279]
[1759137402000,1.08085999,112080.0,112070.0,0.4908428]
[1759137402202,1.33886998,112080.0,112070.0,0.53899149]
[1759137402501,1.08085999,112080.0,112070.0,0.79700148]
[1759137403503,1.10176838,112080.0,112070.0,0.79700148]
[1759137404707,1.35977837,112080.0,112070.0,0.79700148]
[1759137404903,1.35977837,112080.0,112070.0,0.53899149]
[1759137408802,1.35977837,112080.0,112070.0,0.79700148]
[1759137409113,0.28728838,112080.0,112070.0,0.79700148]
[1759137409399,0.02890839,112080.0,112070.0,0.79700148]
[1759137409600,0.81508,112090.0,112080.0,0.0891966]
[1759137409805,0.81508,112090.0,112080.0,1.00095658]
[1759137410206,1.07308999,112090.0,112080.0,1.00095658]
[1759137410607,1.08625999,112090.0,112080.0,0.4849366]
[1759137410802,1.07308999,112090.0,112080.0,1.00095658]
[1759137411304,0.35002973,112100.0,112090.0,0.1241289]
[1759137411509,1.1872341,112100.0,112090.0,0.79106591]
[1759137412998,1.2092341,112100.0,112090.0,0.79706591]
[1759137413204,1.2142341,112100.0,112090.0,0.79906591]
[1759137414614,1.303415,112100.0,112090.0,0.79906591]
[1759137415301,1.303415,112100.0,112090.0,0.54105592]
[1759137415603,1.2138741,112100.0,112090.0,0.79906591]
[1759137416007,0.3979541,112100.0,112090.0,0.79906591]
[1759137416307,1.2137141,112100.0,112090.0,0.79906591]
[1759137417308,1.2137141,112100.0,112090.0,0.75093889]
[1759137417511,1.2137941,112100.0,112090.0,0.75093889]
[1759137418411,0.95578411,112100.0,112090.0,0.75093889]
[1759137418611,1.2137941,112100.0,112090.0,0.75093889]
[1759137419211,1.19286973,112100.0,112090.0,0.79906591]
[1759137421009,1.19250973,112100.0,112090.0,0.79906591]
[1759137421209,1.17933973,112100.0,112090.0,0.75093889]
[1759137421406,0.09678815,112100.0,112090.0,0.79906591]
[1759137421605,0.09678815,112100.0,112090.0,1.15093889]
[1759137421811,0.91222815,112100.0,112090.0,1.19906591]
[1759137423017,0.91222815,112100.0,112090.0,1.15093889]
[1759137424518,0.46483559,112130.0,112120.0,0.1241053]
[1759137424724,1.55731431,112130.0,112120.0,0.1241053]
[1759137425225,1.62933757,112130.0,112120.0,0.1241053]
[1759137426323,1.66333757,112130.0,112120.0,0.1311053]
[1759137426628,1.66433757,112130.0,112120.0,0.1391053]
[1759137427125,1.66433757,112130.0,112120.0,0.1241053]
[1759137427126,1.62933757,112130.0,112120.0,0.1241053]
[1759137427328,1.64333757,112130.0,112120.0,0.1291053]
[1759137427828,1.64333757,112130.0,112120.0,0.1241053]
[1759137428026,1.62933757,112130.0,112120.0,0.1241053]
[1759137428231,1.62916721,112130.0,112120.0,0.1241053]
[1759137428423,1.63826562,112130.0,112120.0,0.1241053]
[1759137429628,1.38042599,112130.0,112120.0,0.1241053]
[1759137429829,1.63826562,112130.0,112120.0,0.1241053]
[1759137431128,1.63826562,112130.0,112120.0,0.03494]
[1759137431329,1.63826562,112130.0,112120.0,0.1241072]
[1759137433132,1.63826562,112130.0,112120.0,0.03494]
[1759137434332,1.38042599,112130.0,112120.0,0.03494]
[1759137434629,1.63826562,112130.0,112120.0,0.03494]
[1759137437334,1.78636562,112130.0,112120.0,0.03494]
[1759137437536,1.63826562,112130.0,112120.0,0.03494]
[1759137440642,0.82298562,112130.0,112120.0,0.03494]
[1759137440940,1.63826562,112130.0,112120.0,0.03494]
[1759137441935,0.0891673,112120.0,112110.0,0.01347]
[1759137442139,0.38075354,112120.0,112110.0,0.03472]
[1759137442739,0.74155354,112120.0,112110.0,0.03472]
[1759137443043,0.72097693,112120.0,112110.0,0.03572]
[1759137443239,0.72197693,112120.0,112110.0,0.03672]
[1759137444246,0.72197693,112120.0,112110.0,0.03656]
[1759137446441,0.74256409,112120.0,112110.0,0.03656]
[1759137450442,0.74256409,112120.0,112110.0,0.0846243]
[1759137450850,1.40456372,112120.0,112110.0,0.002]
[1759137451056,1.42552554,112120.0,112110.0,0.002]
[1759137451637,0.1026028,112100.0,112090.0,0.0615343]
[1759137451845,0.74182959,112100.0,112090.0,0.03472]
[1759137452044,1.14182959,112100.0,112090.0,0.03472]
[1759137452242,1.95798959,112100.0,112090.0,0.03472]
[1759137452941,1.95794959,112100.0,112090.0,0.1239113]
[1759137453142,1.95994959,112100.0,112090.0,0.1359113]
[1759137453544,1.96094959,112100.0,112090.0,0.1419113]
[1759137454551,1.14482959,112100.0,112090.0,0.1419113]
[1759137454752,1.96074959,112100.0,112090.0,0.1419113]
[1759137455445,1.14482959,112100.0,112090.0,0.018]
[1759137455650,1.14905959,112100.0,112090.0,0.018]
[1759137455950,1.96489959,112100.0,112090.0,0.018]
[1759137456344,1.14482959,112100.0,112090.0,0.05289]
[1759137456551,1.96066959,112100.0,112090.0,0.05289]
[1759137457548,2.10876959,112100.0,112090.0,0.05289]
[1759137457751,1.96066959,112100.0,112090.0,0.05289]
[1759137458251,1.94008243,112100.0,112090.0,0.05289]
[1759137458654,1.93980243,112100.0,112090.0,0.1420812]
[1759137459153,1.93980243,112100.0,112090.0,0.05289]
[1759137459454,1.53980243,112100.0,112090.0,0.05289]
[1759137461151,1.53968243,112100.0,112090.0,0.05289]
[1759137463653,0.72424243,112100.0,112090.0,0.05289]
[1759137463858,1.53936243,112100.0,112090.0,0.05289]
[1759137465157,1.53932243,112100.0,112090.0,0.05289]
[1759137467057,1.53932243,112100.0,112090.0,0.03164]
[1759137467249,1.53932243,112100.0,112090.0,0.05289]
[1759137467656,1.68742243,112100.0,112090.0,0.05289]
[1759137467856,1.53932243,112100.0,112090.0,0.05289]
[1759137469753,0.72424243,112100.0,112090.0,0.1420812]